fUST/lending_fUST_20240827
["ID","MTS","AMOUNT","RATE_DAILY","PERIOD"]
[336068614,1724688646347,-500.0,0.00011682,2]
[336068615,1724688646356,-689.26,0.00011682,2]
[336068616,1724688646366,-605.53,0.00011682,2]
[336068617,1724688646375,-611.8,0.00011682,2]
[336068618,1724688646384,-500.0,0.00011683,2]
[336068619,1724688646393,-154.88733987,0.00011712,2]
[336068620,1724688646402,-150.0,0.00011718,2]
[336068621,1724688646411,-779.06,0.0001173,2]
[336068622,1724688646420,-500.0,0.00011778,2]
[336068623,1724688646430,-500.0,0.00011779,2]
[336068624,1724688646439,-746.73,0.00011779,2]
[336068625,1724688646448,-500.0,0.00011779,2]
[336068626,1724688646457,-501.58,0.00011779,2]
[336068627,1724688646467,-500.0,0.00011779,2]
[336068628,1724688646477,-500.0,0.00011779,2]
[336068629,1724688646486,-500.0,0.00011779,2]
[336068630,1724688646495,-766.49,0.00011779,2]
[336068631,1724688646504,-500.0,0.00011779,2]
[336068632,1724688646513,-500.0,0.00011779,2]
[336068633,1724688646523,-779.06,0.00011779,2]
[336068634,1724688646534,-779.06,0.00011779,2]
[336068635,1724688646545,-779.06,0.00011779,2]
[336068636,1724688646554,-500.0,0.00011779,2]
[336068637,1724688646563,-500.0,0.0001178,2]
[336068638,1724688646572,-954.7,0.0001178,2]
[336068639,1724688646582,-500.0,0.0001178,2]
[336068640,1724688646591,-654.99,0.0001178,2]
[336068641,1724688646600,-500.0,0.0001178,2]
[336068642,1724688646610,-500.0,0.0001178,2]
[336068643,1724688646620,-500.0,0.0001178,2]
[336068644,1724688646629,-676.74,0.0001178,2]
[336068645,1724688646638,-542.98,0.0001178,2]
[336068646,1724688646651,-500.0,0.0001178,2]
[336068647,1724688646660,-500.0,0.0001178,2]
[336068648,1724688646670,-501.37,0.0001178,2]
[336068649,1724688646679,-500.0,0.0001178,2]
[336068650,1724688646690,-500.0,0.0001178,2]
[336068651,1724688646701,-500.0,0.0001178,2]
[336068652,1724688646710,-567.22,0.0001178,2]
[336068653,1724688646719,-500.0,0.0001178,2]
[336068654,1724688646730,-500.0,0.0001178,2]
[336068655,1724688646739,-500.0,0.0001178,2]
[336068656,1724688646749,-500.0,0.0001178,2]
[336068657,1724688646759,-500.0,0.0001178,2]
[336068658,1724688646768,-500.0,0.0001178,2]
[336068659,1724688646778,-500.0,0.0001178,2]
[336068660,1724688646787,-500.0,0.0001178,2]
[336068661,1724688646801,-500.0,0.0001178,2]
[336068662,1724688646811,-500.0,0.0001178,2]
[336068663,1724688646821,-211.98822254,0.0001178,2]
[336068664,1724688646830,-500.0,0.0001178,2]
[336068665,1724688646840,-500.0,0.0001178,2]
[336068666,1724688646850,-500.0,0.0001178,2]
[336068667,1724688646860,-613.58,0.0001178,2]
[336068668,1724688646869,-500.0,0.0001178,2]
[336068669,1724688646879,-500.0,0.0001178,2]
[336068670,1724688646888,-500.0,0.0001178,2]
[336068671,1724688646897,-500.0,0.0001178,2]
[336068672,1724688646908,-500.0,0.0001178,2]
[336068673,1724688646918,-500.0,0.0001178,2]
[336068674,1724688646927,-500.0,0.0001178,2]
[336068675,1724688646938,-525.71,0.0001178,2]
[336068676,1724688646948,-500.0,0.0001178,2]
[336068677,1724688646959,-507.12,0.0001178,2]
[336068678,1724688646969,-500.0,0.0001178,2]
[336068679,1724688646978,-500.0,0.0001178,2]
[336068680,1724688646987,-816.88,0.0001178,2]
[336068681,1724688646997,-644.29,0.0001178,2]
[336068682,1724688647006,-500.0,0.0001178,2]
[336068683,1724688647016,-500.0,0.0001178,2]
[336068684,1724688647027,-500.0,0.0001178,2]
[336068685,1724688647037,-500.0,0.0001178,2]
[336068686,1724688647048,-500.0,0.0001178,2]
[336068687,1724688647058,-500.0,0.0001178,2]
[336068688,1724688647067,-500.0,0.0001178,2]
[336068689,1724688647076,-500.0,0.0001178,2]
[336068690,1724688647086,-500.0,0.0001178,2]
[336068691,1724688647095,-500.0,0.0001178,2]
[336068692,1724688647104,-500.0,0.0001178,2]
[336068693,1724688647113,-500.0,0.0001178,2]
[336068694,1724688647122,-500.0,0.0001178,2]
[336068695,1724688647132,-500.0,0.0001178,2]
[336068696,1724688647141,-500.0,0.0001178,2]
[336068697,1724688647150,-674.17,0.0001178,2]
[336068698,1724688647159,-500.0,0.0001178,2]
[336068699,1724688647169,-500.0,0.0001178,2]
[336068700,1724688647178,-619.38,0.0001178,2]
[336068701,1724688647187,-707.42,0.0001178,2]
[336068702,1724688647196,-500.0,0.0001178,2]
[336068703,1724688647205,-500.0,0.0001178,2]
[336068704,1724688647214,-500.0,0.0001178,2]
[336068705,1724688647223,-845.31,0.0001178,2]
[336068706,1724688647232,-596.5,0.0001178,2]
[336068707,1724688647241,-519.32,0.0001178,2]
[336068708,1724688647251,-500.0,0.0001178,2]
[336068709,1724688647260,-500.0,0.0001178,2]
[336068710,1724688647270,-713.1,0.0001178,2]
[336068711,1724688647280,-996.63,0.0001178,2]
[336068712,1724688647291,-500.0,0.0001178,2]
[336068713,1724688647300,-500.0,0.0001178,2]
[336068714,1724688647310,-500.0,0.0001178,2]
[336068715,1724688647319,-500.0,0.0001178,2]
[336068716,1724688647329,-748.73,0.0001178,2]
[336068717,1724688647338,-500.0,0.0001178,2]
[336068718,1724688647348,-595.04,0.0001178,2]
[336068719,1724688647357,-526.6,0.0001178,2]
[336068720,1724688647367,-500.0,0.0001178,2]
[336068721,1724688647377,-500.0,0.0001178,2]
[336068722,1724688647386,-500.0,0.0001178,2]
[336068723,1724688647395,-500.0,0.0001178,2]
[336068724,1724688647405,-500.0,0.0001178,2]
[336068725,1724688647415,-643.01,0.0001178,2]
[336068726,1724688647425,-557.06,0.0001178,2]
[336068727,1724688647434,-682.0,0.0001178,2]
[336068728,1724688647444,-500.0,0.0001178,2]
[336068729,1724688647453,-500.0,0.0001178,2]
[336068730,1724688647463,-500.0,0.0001178,2]
[336068731,1724688647472,-746.13,0.0001178,2]
[336068732,1724688647482,-500.0,0.0001178,2]
[336068733,1724688647492,-593.89,0.0001178,2]
[336068734,1724688647501,-500.0,0.0001178,2]
[336068735,1724688647511,-500.0,0.0001178,2]
[336068736,1724688647520,-500.0,0.0001178,2]
[336068737,1724688647529,-500.0,0.0001178,2]
[336068738,1724688647542,-500.0,0.0001178,2]
[336068739,1724688647557,-500.0,0.0001178,2]
[336068740,1724688647567,-500.0,0.0001178,2]
[336068741,1724688647577,-595.54,0.0001178,2]
[336068742,1724688647587,-663.47,0.0001178,2]
[336068743,1724688647597,-500.0,0.0001178,2]
[336068744,1724688647606,-526.03835976,0.0001178,2]
[336068745,1724688647616,-1088.92,0.0001178,2]
[336068746,1724688647626,-500.0,0.0001178,2]
[336068747,1724688647636,-500.0,0.0001178,2]
[336068748,1724688647646,-500.0,0.0001178,2]
[336068749,1724688647660,-500.0,0.0001178,2]
[336068750,1724688647669,-500.0,0.0001178,2]
[336068751,1724688647679,-500.0,0.0001178,2]
[336068752,1724688647689,-500.0,0.0001178,2]
[336068753,1724688647701,-500.0,0.0001178,2]
[336068754,1724688647710,-540.83,0.0001178,2]
[336068755,1724688647721,-741.78,0.0001178,2]
[336068756,1724688647731,-909.81,0.0001178,2]
[336068757,1724688647741,-500.0,0.0001178,2]
[336068758,1724688647751,-797.11,0.0001178,2]
[336068759,1724688647760,-1345.42,0.0001178,2]
[336068760,1724688647770,-1007.38,0.0001178,2]
[336068761,1724688647780,-533.99698326,0.0001178,2]
[336068762,1724688647791,-500.0,0.0001178,2]
[336068763,1724688647800,-500.0,0.0001178,2]
[336068764,1724688647810,-500.0,0.0001178,2]
[336068765,1724688647819,-500.0,0.0001178,2]
[336068766,1724688647829,-675.17,0.0001178,2]
[336068767,1724688647838,-500.0,0.0001178,2]
[336068768,1724688647849,-500.0,0.0001178,2]
[336068769,1724688647858,-500.0,0.0001178,2]
[336068770,1724688647868,-500.0,0.0001178,2]
[336068771,1724688647878,-500.0,0.0001178,2]
[336068772,1724688647887,-796.81,0.0001178,2]
[336068773,1724688647896,-500.0,0.0001178,2]
[336068774,1724688647906,-714.78,0.0001178,2]
[336068775,1724688647921,-500.0,0.0001178,2]
[336068776,1724688647930,-588.35,0.0001178,2]
[336068777,1724688647940,-500.0,0.0001178,2]
[336068778,1724688647949,-964.7,0.0001178,2]
[336068779,1724688647959,-500.0,0.0001178,2]
[336068780,1724688647970,-500.0,0.0001178,2]
[336068781,1724688647979,-533.78,0.0001178,2]
[336068782,1724688647989,-2493.65,0.0001178,2]
[336068783,1724688647998,-500.0,0.0001178,2]
[336068784,1724688648008,-635.09,0.0001178,2]
[336068785,1724688648018,-500.0,0.0001178,2]
[336068786,1724688648028,-627.66,0.0001178,2]
[336068787,1724688648040,-662.01,0.0001178,2]
[336068788,1724688648050,-500.0,0.0001178,2]
[336068789,1724688648059,-549.64,0.0001178,2]
[336068790,1724688648069,-500.0,0.0001178,2]
[336068791,1724688648079,-500.0,0.0001178,2]
[336068792,1724688648089,-500.0,0.0001178,2]
[336068793,1724688648099,-838.13,0.0001178,2]
[336068794,1724688648110,-830.29,0.0001178,2]
[336068795,1724688648120,-871.24,0.0001178,2]
[336068796,1724688648130,-633.26,0.0001178,2]
[336068797,1724688648142,-659.35,0.0001178,2]
[336068798,1724688648153,-500.0,0.0001178,2]
[336068799,1724688648166,-570.29,0.0001178,2]
[336068800,1724688648179,-759.91,0.0001178,2]
[336068801,1724688648188,-500.0,0.0001178,2]
[336068802,1724688648198,-500.0,0.0001178,2]
[336068803,1724688648208,-734.58,0.0001178,2]
[336068804,1724688648219,-500.0,0.0001178,2]
[336068805,1724688648229,-500.0,0.0001178,2]
[336068806,1724688648239,-578.76,0.0001178,2]
[336068807,1724688648249,-741.33,0.0001178,2]
[336068808,1724688648259,-500.0,0.0001178,2]
[336068809,1724688648270,-500.0,0.0001178,2]
[336068810,1724688648280,-850.15,0.0001178,2]
[336068811,1724688648290,-500.0,0.0001178,2]
[336068812,1724688648299,-575.01,0.0001178,2]
[336068813,1724688648308,-1181.34,0.0001178,2]
[336068814,1724688648318,-500.0,0.0001178,2]
[336068815,1724688648328,-500.0,0.0001178,2]
[336068816,1724688648338,-500.0,0.0001178,2]
[336068817,1724688648347,-500.0,0.0001178,2]
[336068818,1724688648357,-666.81,0.0001178,2]
[336068819,1724688648367,-1951.16,0.0001178,2]
[336068820,1724688648377,-893.49,0.0001178,2]
[336068821,1724688648387,-500.0,0.0001178,2]
[336068822,1724688648397,-756.87,0.0001178,2]
[336068823,1724688648406,-500.0,0.0001178,2]
[336068824,1724688648416,-642.05,0.0001178,2]
[336068825,1724688648426,-500.0,0.0001178,2]
[336068826,1724688648436,-507.14,0.0001178,2]
[336068827,1724688648445,-948.36,0.0001178,2]
[336068828,1724688648455,-500.0,0.0001178,2]
[336068829,1724688648464,-500.0,0.0001178,2]
[336068830,1724688648474,-500.0,0.0001178,2]
[336068831,1724688648484,-500.0,0.0001178,2]
[336068832,1724688648493,-500.0,0.0001178,2]
[336068833,1724688648503,-500.0,0.0001178,2]
[336068834,1724688648513,-500.0,0.0001178,2]
[336068835,1724688648523,-852.28,0.0001178,2]
[336068836,1724688648534,-876.89,0.0001178,2]
[336068837,1724688648545,-500.0,0.0001178,2]
[336068838,1724688648555,-500.0,0.0001178,2]
[336068839,1724688648564,-531.75,0.0001178,2]
[336068840,1724688648574,-500.0,0.0001178,2]
[336068841,1724688648584,-500.0,0.0001178,2]
[336068842,1724688648593,-549.14,0.0001178,2]
[336068843,1724688648603,-500.0,0.0001178,2]
[336068844,1724688648612,-500.0,0.0001178,2]
[336068845,1724688648622,-500.0,0.0001178,2]
[336068846,1724688648632,-1257.07,0.0001178,2]
[336068847,1724688648644,-1620.4,0.0001178,2]
[336068848,1724688648658,-643.03,0.0001178,2]
[336068849,1724688648668,-500.0,0.0001178,2]
[336068850,1724688648678,-500.0,0.0001178,2]
[336068851,1724688648688,-500.0,0.0001178,2]
[336068852,1724688648699,-17680.36,0.0001178,2]
[336068853,1724688648708,-500.0,0.0001178,2]
[336068854,1724688648719,-890.96,0.0001178,2]
[336068855,1724688648730,-500.0,0.0001178,2]
[336068856,1724688648740,-890.21,0.0001178,2]
[336068857,1724688648750,-500.0,0.0001178,2]
[336068858,1724688648759,-500.0,0.0001178,2]
[336068859,1724688648769,-513.92,0.0001178,2]
[336068860,1724688648779,-522.6,0.0001178,2]
[336068861,1724688648790,-500.0,0.0001178,2]
[336068862,1724688648800,-500.0,0.0001178,2]
[336068863,1724688648810,-500.0,0.0001178,2]
[336068864,1724688648820,-526.31,0.0001178,2]
[336068865,1724688648830,-552.98,0.0001178,2]
[336068866,1724688648839,-927.57,0.0001178,2]
[336068867,1724688648849,-500.0,0.0001178,2]
[336068868,1724688648859,-758.27,0.0001178,2]
[336068869,1724688648869,-500.0,0.0001178,2]
[336068870,1724688648879,-500.0,0.0001178,2]
[336068871,1724688648889,-500.0,0.0001178,2]
[336068872,1724688648899,-500.0,0.0001178,2]
[336068873,1724688648909,-500.0,0.0001178,2]
[336068874,1724688648919,-684.26,0.0001178,2]
[336068875,1724688648937,-500.0,0.0001178,2]
[336068876,1724688648947,-500.0,0.0001178,2]
[336068877,1724688648957,-500.0,0.0001178,2]
[336068878,1724688648967,-500.0,0.0001178,2]
[336068879,1724688648978,-500.0,0.0001178,2]
[336068880,1724688648988,-500.0,0.0001178,2]
[336068881,1724688648998,-555.39,0.0001178,2]
[336068882,1724688649008,-542.95,0.0001178,2]
[336068883,1724688649017,-549.18,0.0001178,2]
[336068884,1724688649027,-500.0,0.0001178,2]
[336068885,1724688649039,-500.0,0.0001178,2]
[336068886,1724688649048,-500.0,0.0001178,2]
[336068887,1724688649058,-500.0,0.0001178,2]
[336068888,1724688649068,-500.0,0.0001178,2]
[336068889,1724688649078,-500.0,0.0001178,2]
[336068890,1724688649087,-611.7,0.0001178,2]
[336068891,1724688649097,-500.0,0.0001178,2]
[336068892,1724688649106,-500.0,0.0001178,2]
[336068893,1724688649116,-500.0,0.0001178,2]
[336068894,1724688649126,-500.0,0.0001178,2]
[336068895,1724688649137,-719.13,0.0001178,2]
[336068896,1724688649147,-1058.04,0.0001178,2]
[336068897,1724688649157,-662.33,0.0001178,2]
[336068898,1724688649167,-500.0,0.0001178,2]
[336068899,1724688649178,-500.0,0.0001178,2]
[336068900,1724688649188,-500.0,0.0001178,2]
[336068901,1724688649198,-500.0,0.0001178,2]
[336068902,1724688649208,-523.59357234,0.0001178,2]
[336068903,1724688649218,-1173.34,0.0001178,2]
[336068904,1724688649228,-709.59,0.0001178,2]
[336068905,1724688649238,-860.74,0.0001178,2]
[336068906,1724688649247,-972.43,0.0001178,2]
[336068907,1724688649257,-531.4,0.0001178,2]
[336068908,1724688649267,-500.0,0.0001178,2]
[336068909,1724688649278,-153.0,0.00011781,2]
[336068910,1724688649290,-153.0,0.00011781,2]
[336068911,1724688649299,-306.0,0.00011781,2]
[336068912,1724688649309,-500.0,0.00011781,2]
[336068913,1724688649319,-939.34726896,0.00011821,2]
[336068914,1724688649329,-500.0,0.00011821,2]
[336068915,1724688649340,-1080.13900546,0.00011821,2]
[336068916,1724688649350,-1000.0,0.00011821,2]
[336068917,1724688649361,-1050.90246671,0.00011821,2]
[336068918,1724688649371,-3000.0,0.00011856,2]
[336068919,1724688649381,-500.21206834,0.00011873,2]
[336068920,1724688649391,-500.0,0.00011873,2]
[336068921,1724688649401,-779.06,0.00011898,2]
[336068922,1724688649411,-779.06,0.00011899,2]
[336068923,1724688649422,-779.06,0.00011899,2]
[336068924,1724688649432,-779.06,0.00011899,2]
[336068925,1724688649443,-779.06,0.00011899,2]
[336068926,1724688649453,-779.06,0.00011899,2]
[336068927,1724688649463,-779.1979755,0.00011899,2]
[336068928,1724688649472,-500.0,0.00011899,2]
[336068929,1724688649482,-519.04389964,0.00011899,2]
[336068930,1724688649492,-33000.29216544,0.000119,5]
[336068931,1724688649979,-464.55351742,0.00011506,2]
[336068932,1724688650258,-35.44648258,0.00011506,2]
[336068933,1724688650267,-500.0,0.00011506,2]
[336068934,1724688650276,-500.0,0.00011506,2]
[336068935,1724688650285,-500.0,0.0001178,2]
[336068936,1724688650296,-500.0,0.0001178,2]
[336068937,1724688650305,-98475.95411969,0.000119,5]
[336068938,1724688650314,-151.0,0.000119,2]
[336068939,1724688650323,-989.363054,0.000119,2]
[336068940,1724688650332,-989.363054,0.000119,2]
[336068941,1724688650342,-895.971356,0.000119,2]
[336068942,1724688650353,-895.971356,0.000119,2]
[336068943,1724688650364,-151.0,0.000119,2]
[336068944,1724688650374,-465.808432,0.000119,2]
[336068945,1724688650383,-465.808432,0.000119,2]
[336068946,1724688650392,-217.007902,0.000119,2]
[336068947,1724688650402,-151.0,0.000119,2]
[336068948,1724688650411,-217.007902,0.000119,2]
[336068949,1724688650420,-251.349124,0.000119,2]
[336068950,1724688650429,-251.349124,0.000119,2]
[336068951,1724688650439,-2983.496525,0.000119,2]
[336068952,1724688650448,-2983.496525,0.000119,2]
[336068953,1724688650458,-1754.967534,0.000119,2]
[336068954,1724688650467,-1562.029674,0.000119,2]
[336068955,1724688650477,-1562.029674,0.000119,2]
[336068956,1724688650486,-1679.766526,0.000119,2]
[336068957,1724688650495,-1679.766526,0.000119,2]
[336068958,1724688650505,-1919.712438,0.000119,2]
[336068959,1724688650515,-151.0,0.000119,2]
[336068960,1724688650525,-1919.712438,0.000119,2]
[336068961,1724688650535,-730.391271,0.000119,2]
[336068962,1724688650547,-730.391271,0.000119,2]
[336068963,1724688650559,-160.289931,0.000119,2]
[336068964,1724688650568,-160.289931,0.000119,2]
[336068965,1724688650577,-190.44939,0.000119,2]
[336068966,1724688650587,-765.43402,0.000119,2]
[336068967,1724688650596,-190.44939,0.000119,2]
[336068968,1724688650605,-765.43402,0.000119,2]
[336068969,1724688650615,-151.0,0.000119,2]
[336068970,1724688650624,-193.24146,0.000119,2]
[336068971,1724688650633,-193.24146,0.000119,2]
[336068972,1724688650644,-1752.97977,0.000119,2]
[336068973,1724688650659,-1752.97977,0.000119,2]
[336068974,1724688650669,-151.0,0.000119,2]
[336068975,1724688650678,-151.0,0.000119,2]
[336068976,1724688650687,-1853.020071,0.000119,2]
[336068977,1724688650698,-1425.223054,0.000119,2]
[336068978,1724688650707,-1853.020071,0.000119,2]
[336068979,1724688650716,-1425.223054,0.000119,2]
[336068980,1724688650725,-151.0,0.000119,2]
[336068981,1724688650736,-151.0,0.000119,2]
[336068982,1724688650746,-190.464834,0.000119,2]
[336068983,1724688650755,-190.464834,0.000119,2]
[336068984,1724688650764,-123559.38464503,0.000119,2]
[336068985,1724688651180,-500.0,0.00010958,2]
[336068986,1724688651190,-500.0,0.00010958,2]
[336068987,1724688651199,-500.0,0.00010958,2]
[336068988,1724688651208,-500.0,0.00011232,2]
[336068989,1724688651217,-500.0,0.00011232,2]
[336068990,1724688651226,-500.0,0.00011506,2]
[336068991,1724688651235,-500.0,0.0001178,2]
[336068992,1724688651244,-500.0,0.0001178,2]
[336068993,1724688651253,-656.43182114,0.000119,2]
[336068994,1724688651264,-92242.29567949,0.000119,2]
[336068995,1724688651605,-500.0,0.00010958,2]
[336068996,1724688651615,-212.81357772,0.00011232,2]
[336068997,1724688652805,-287.18642228,0.00011232,2]
[336068998,1724688652815,-140228.24005634,0.000119,2]
[336068999,1724688652824,-151.0,0.000119,2]
[336069000,1724688652834,-151.0,0.000119,2]
[336069001,1724688652843,-373.709795,0.000119,2]
[336069002,1724688653092,-373.709795,0.000119,2]
[336069003,1724688653102,-151.0,0.000119,2]
[336069004,1724688653112,-814.480946,0.000119,2]
[336069005,1724688653121,-151.0,0.000119,2]
[336069006,1724688653130,-814.480946,0.000119,2]
[336069007,1724688653139,-151.0,0.000119,2]
[336069008,1724688653149,-151.0,0.000119,2]
[336069009,1724688653161,-151.0,0.000119,2]
[336069010,1724688653171,-500.0,0.00011956,2]
[336069011,1724688653180,-657.63,0.00011956,2]
[336069012,1724688653189,-500.0,0.00011956,2]
[336069013,1724688653198,-500.0,0.00011956,2]
[336069014,1724688653208,-847.36,0.00011956,2]
[336069015,1724688653217,-500.0,0.00011956,2]
[336069016,1724688653228,-504.07,0.00011956,2]
[336069017,1724688653238,-500.0,0.00011956,2]
[336069018,1724688653249,-526.67,0.00011956,2]
[336069019,1724688653260,-500.0,0.00011956,2]
[336069020,1724688653270,-500.0,0.00011956,2]
[336069021,1724688653279,-500.0,0.00011956,2]
[336069022,1724688653289,-689.26,0.00011956,2]
[336069023,1724688653299,-605.53,0.00011956,2]
[336069024,1724688653308,-611.8,0.00011956,2]
[336069025,1724688653317,-157.05258861,0.00011987,2]
[336069026,1724688653327,-1500.0,0.00012,2]
[336069027,1724688653336,-500.0,0.00012053,2]
[336069028,1724688653345,-746.73,0.00012053,2]
[336069029,1724688653355,-500.0,0.00012053,2]
[336069030,1724688653364,-501.58,0.00012053,2]
[336069031,1724688653373,-500.0,0.00012053,2]
[336069032,1724688653383,-500.0,0.00012053,2]
[336069033,1724688653392,-500.0,0.00012053,2]
[336069034,1724688653403,-766.49,0.00012053,2]
[336069035,1724688653412,-500.0,0.00012053,2]
[336069036,1724688653421,-500.0,0.00012053,2]
[336069037,1724688653439,-420.0,0.00012053,2]
[336069038,1724688653450,-500.0,0.00012054,2]
[336069039,1724688653460,-500.0,0.00012054,2]
[336069040,1724688653470,-500.0,0.00012054,2]
[336069041,1724688653479,-654.99,0.00012054,2]
[336069042,1724688653489,-500.0,0.00012054,2]
[336069043,1724688653498,-500.0,0.00012054,2]
[336069044,1724688653508,-500.0,0.00012054,2]
[336069045,1724688653518,-676.74,0.00012054,2]
[336069046,1724688653527,-542.98,0.00012054,2]
[336069047,1724688653537,-500.0,0.00012054,2]
[336069048,1724688653548,-500.0,0.00012054,2]
[336069049,1724688653558,-501.37,0.00012054,2]
[336069050,1724688653567,-500.0,0.00012054,2]
[336069051,1724688653578,-500.0,0.00012054,2]
[336069052,1724688653588,-500.0,0.00012054,2]
[336069053,1724688653598,-567.22,0.00012054,2]
[336069054,1724688653608,-500.0,0.00012054,2]
[336069055,1724688653618,-500.0,0.00012054,2]
[336069056,1724688653628,-500.0,0.00012054,2]
[336069057,1724688653638,-486.1490105,0.00012054,2]
[336069058,1724688653650,-500.0,0.00012054,2]
[336069059,1724688653661,-500.0,0.00012054,2]
[336069060,1724688653671,-500.0,0.00012054,2]
[336069061,1724688653681,-500.0,0.00012054,2]
[336069062,1724688653692,-500.0,0.00012054,2]
[336069063,1724688653701,-500.0,0.00012054,2]
[336069064,1724688653712,-634.076666,0.00012054,2]
[336069065,1724688653722,-634.076666,0.00012054,2]
[336069066,1724688653737,-500.0,0.00012054,2]
[336069067,1724688653747,-631.52985006,0.00012054,2]
[336069068,1724688653757,-218.0644595,0.00012054,2]
[336069069,1724688653767,-613.58,0.00012054,2]
[336069070,1724688653777,-500.0,0.00012054,2]
[336069071,1724688653787,-500.0,0.00012054,2]
[336069072,1724688653797,-500.0,0.00012054,2]
[336069073,1724688653808,-500.0,0.00012054,2]
[336069074,1724688653818,-151.0,0.00012054,2]
[336069075,1724688653828,-500.0,0.00012054,2]
[336069076,1724688653838,-151.0,0.00012054,2]
[336069077,1724688653848,-500.0,0.00012054,2]
[336069078,1724688653858,-500.0,0.00012054,2]
[336069079,1724688653868,-525.71,0.00012054,2]
[336069080,1724688653878,-507.12,0.00012054,2]
[336069081,1724688653887,-500.0,0.00012054,2]
[336069082,1724688653897,-500.0,0.00012054,2]
[336069083,1724688653907,-816.88,0.00012054,2]
[336069084,1724688653916,-1105.424744,0.00012054,2]
[336069085,1724688653926,-644.29,0.00012054,2]
[336069086,1724688653935,-1105.424744,0.00012054,2]
[336069087,1724688653945,-500.0,0.00012054,2]
[336069088,1724688653954,-500.0,0.00012054,2]
[336069089,1724688653964,-500.0,0.00012054,2]
[336069090,1724688653974,-500.0,0.00012054,2]
[336069091,1724688653983,-500.0,0.00012054,2]
[336069092,1724688653993,-500.0,0.00012054,2]
[336069093,1724688654003,-500.0,0.00012054,2]
[336069094,1724688654013,-500.0,0.00012054,2]
[336069095,1724688654023,-500.0,0.00012054,2]
[336069096,1724688654032,-500.0,0.00012054,2]
[336069097,1724688654042,-674.17,0.00012054,2]
[336069098,1724688654052,-1267.654246,0.00012054,2]
[336069099,1724688654062,-151.0,0.00012054,2]
[336069100,1724688654071,-1267.654246,0.00012054,2]
[336069101,1724688654081,-151.0,0.00012054,2]
[336069102,1724688654090,-500.0,0.00012054,2]
[336069103,1724688654100,-500.0,0.00012054,2]
[336069104,1724688654110,-619.38,0.00012054,2]
[336069105,1724688654120,-707.42,0.00012054,2]
[336069106,1724688654130,-500.0,0.00012054,2]
[336069107,1724688654140,-500.0,0.00012054,2]
[336069108,1724688654149,-151.0,0.00012054,2]
[336069109,1724688654159,-500.0,0.00012054,2]
[336069110,1724688654168,-845.31,0.00012054,2]
[336069111,1724688654178,-926.858511,0.00012054,2]
[336069112,1724688654188,-596.5,0.00012054,2]
[336069113,1724688654198,-519.32,0.00012054,2]